[Event "Reykjavik Open 2025"]
[Site "Reykjavik"]
[Date "2025.04.10"]
[Round "3.2"]
[White "Prraneeth Vuppala"]
[Black "Ivic, Velimir"]
[Result "0-1"]
[Annotator "TA"]
[ECO "B33"]
[WhiteElo "2433"]
[BlackElo "2623"]
[PlyCount "182"]
[EventDate "2025.04.09"]
[EventType "swiss"]
[EventCountry "ISL"]
[SourceTitle "playchess.com"]
[Source "ChessBase"]
[SourceQuality "1"]
[TimeControl "40/5400+30:1800+30"]

{[%evp 16,182,12,0,0,0,3,0,21,12,18,17,27,30,29,27,27,29,25,26,25,20,14,0,20,0,0,0,0,-3,-6,-14,0,-4,-4,-12,-4,-8,-8,-27,-8,-9,-9,-39,-8,-6,-1,-2,-8,-63,-14,-28,-27,-46,-39,-56,-42,-43,-35,-77,-13,-31,-13,-21,-17,-31,-52,-34,-40,-45,-57,-57,-49,-156,0,0,0,0,0,0,0,0,0,-439,-439,-4133,-439,-439,-211,-586,-577,-1868,-1594,-29975,-29976,-29976,-29977,-29977,-29978,-29978,-29979,-29982,-29983,-29983,-29980,-29981,-29980,-29976,0,-29977,-1916,-1156,-1538,-1732,-1450,-1170,-1075,-29973,-29966,-29966,-29966,-29964,-29967,-5641,-1978,-4702,-379,-358,-375,-354,-372,-372,-375,-375,-363,-323,-316,-310,-302,-1002,-1019,-891,-732,-532,-477,-4614,-4256,-4710,-1433,-1197,-2137,-4585,-4710,-2258,-1295,-29972,-29971,-29970,-29973,-29973,-29974,-29987,-29988,-29990,-29989,-29991,-29988,-29995,-691]} 1. e4 {[%emt 0:00:07]} c5 {[%emt 0:00:16]} 2. Nf3 {[%emt 0:00:09]} Nc6 {[%emt 0:00:23]} 3. d4 {[%emt 0:00:33]} cxd4 {[%emt 0:00:06]} 4. Nxd4 {[%emt 0:00:07]} Nf6 {[%emt 0:00:30]} 5. Nc3 {[%emt 0:00:26]} e5 {[%emt 0:01:30]} 6. Ndb5 {[%emt 0:00:26]} d6 {[%emt 0:00:18]} 7. Nd5 {[%emt 0:04:48]} Nxd5 {[%emt 0:00:07]} 8. exd5 {[%emt 0:00:03]} Nb8 {[%emt 0:01:28]} 9. a4 {[%emt 0:03:08]} Be7 {[%emt 0:00:50] B33: Sicilian: Pelikan and Sveshnikov Variations.} 10. Bd2 {[%emt 0:01:57]} O-O {[%emt 0:02:01]} 11. a5 {[%emt 0:00:56]} Bf5 $5 {[%emt 0:05:03][%mdl 4] The position is equal. A promising side line.} 12. Be3 {[%emt 0:04:10]} Na6 {[%emt 0:06:17]} 13. c3 {[%emt 0:07:04]} Qb8 $146 {[%emt 0:05:50]} (13... Nc5 14. b4 a6 15. Nxd6 Bxd6 16. bxc5 Bc7 17. Bc4 Bxa5 18. Qb3 Rb8 19. O-O b6 {1-0 Arjun,K (2513)-Sanket,C (2275) Dubai op 22nd 2022 (9)}) 14. Be2 {[%emt 0:05:05]} Nc7 {[%emt 0:04:47]} 15. O-O {[%emt 0:01:39]} Nxb5 {[%emt 0:12:01]} 16. Bxb5 {[%emt 0:00:08]} Qc7 {[%emt 0:00:34]} 17. a6 {[%emt 0:04:01]} b6 {[%emt 0:01:02]} 18. Ra4 {[%emt 0:03:07]} Rac8 {[%emt 0:08:15]} 19. f4 {[%emt 0:10:25]} exf4 {[%emt 0:02:16]} 20. Raxf4 {[%emt 0:00:09]} Bg5 {[%emt 0:03:03]} 21. Rxf5 {[%emt 0:00:05]} Bxe3+ {[%emt 0:00:05]} 22. Kh1 {[%emt 0:00:04]} g6 {[%emt 0:01:38]} 23. R5f3 {[%emt 0:00:18]} Bh6 {[%emt 0:00:24][%cal Be3h6,Bh6g7,Bg7e5][%mdl 32]} 24. Qd4 {[%emt 0:19:36]} Bg7 {[%emt 0:03:20]} 25. Qh4 {[%emt 0:01:45]} Be5 {[%emt 0:02:12]} 26. g4 {[%emt 0:06:39]} f6 {[%emt 0:00:58]} 27. Qf2 {[%emt 0:02:11]} Rf7 {[%emt 0:01:05]} 28. Qe2 {[%emt 0:06:24]} Rcf8 {[%emt 0:01:22]} 29. Qc4 {[%emt 0:02:46]} Qd8 {[%emt 0:00:53]} 30. Qe4 {[%emt 0:01:59]} Kh8 {[%emt 0:01:25]} 31. Qe2 {[%emt 0:01:55]} Qc8 {[%emt 0:02:11]} 32. Qc4 {[%emt 0:04:15]} (32. Qe4 $11) 32... Rc7 {[%emt 0:01:27]} (32... Qxc4 $15 33. Bxc4 Rc8) 33. Qe4 {[%emt 0:00:07]} Rc5 {[%emt 0:03:28]} 34. Bd3 {[%emt 0:05:35]} Qd7 {[%emt 0:01:37]} 35. Rh3 {[%emt 0:03:44]} Kg8 {[%emt 0:01:01]} 36. Qg2 {[%emt 0:00:57]} b5 {[%emt 0:03:20]} 37. Rff3 {[%emt 0:01:12]} Qg7 {[%emt 0:10:04]} (37... Rxd5 38. Rxf6 Rxf6 39. Qxd5+ Qf7 40. Qxf7+ (40. Qxb5 d5 $11) 40... Rxf7 41. Bxb5 $16) (37... Qc8 38. Bf5 Qxa6 (38... gxf5 $2 39. gxf5+ Kf7 40. Rxh7+ Ke8 41. Qg7 $18) 39. Be6+ Kh8 40. g5 $11) (37... b4 $17 38. cxb4 Rc1+ 39. Rf1 Rxf1+ 40. Bxf1 f5) 38. Rh4 $11 {[%emt 0:00:35]} b4 {[%emt 0:02:02]} 39. Rfh3 {[%emt 0:00:29] Counterplay Black} bxc3 {[%emt 0:03:39]} 40. Rxh7 {[%emt 0:00:04]} Qxh7 {[%emt 0:00:20]} 41. Rxh7 {[%emt 0:30:09]} Kxh7 {[%emt 0:30:25]} 42. bxc3 {[%emt 0:00:00]} Rxc3 {[%emt 0:00:00]} 43. Qe4 {[%emt 0:00:00]} Rg8 {[%emt 0:00:00]} 44. h4 {[%emt 0:00:00]} ({Better is} 44. Kg2 $15) 44... Rg7 $2 {[%emt 0:00:00]} (44... f5 $1 $17 {[%cal Rf5e4]} 45. Qf3 fxg4) 45. h5 {[%emt 0:00:00]} Kg8 {[%emt 0:00:00]} 46. hxg6 {[%emt 0:00:00][%cal Oe4b4]} Re7 {[%emt 0:04:03]} 47. Kg2 {[%emt 0:00:00]} Kg7 {[%emt 0:02:24]} 48. Qf5 {[%emt 0:00:00][%cal Of5h5]} Rb3 {[%emt 0:00:56]} 49. Kf3 $2 {[%emt 0:05:06][%mdl 8192] Black converts the advantage convincingly.} (49. g5 $11) 49... Bd4 $19 {[%emt 0:01:20]} 50. g5 {[%emt 0:00:24]} (50. Kf4 $142 Ra3 51. g5) 50... fxg5 {[%emt 0:01:42]} (50... Re3+ 51. Kg4 Rbxd3 (51... Rexd3 52. Qd7+ Kxg6 53. Qe8+ Kg7 54. Qd7+ Kg8 55. Qd8+ Kf7 56. Qd7+ Kg6 57. Qe8+ Kg7 58. Qd7+ Kg6 $11) 52. Qd7+ Kxg6 53. Qf5+ Kf7 54. Qd7+ Kg6 55. Qf5+ Kf7 56. Qd7+ Kg6 $11) (50... Rxd3+ $142 51. Qxd3 Re3+ 52. Qxe3 Bxe3 53. gxf6+ Kxf6 54. Kxe3 Kxg6) 51. Kg4 {[%emt 0:00:16]} Rb2 {[%emt 0:01:45]} (51... Bf6 $142 {And now ...Re3 would win.} 52. Kf3 Rb4) 52. Qf3 {[%emt 0:00:53]} (52. Bc2) 52... Bf6 {[%emt 0:01:28] Active counter play!} 53. Bf5 {[%emt 0:00:30]} Re1 {[%emt 0:02:38] ( -> ...Rg1+) Repels Qh1} 54. Qa3 {[%emt 0:00:31]} Rg1+ {[%emt 0:01:06]} 55. Kf3 {[%emt 0:00:24]} Rf1+ {[%emt 0:00:13]} 56. Ke3 {[%emt 0:00:34]} Rxf5 {[%emt 0:00:32]} 57. Qxd6 {[%emt 0:00:03]} Kxg6 {[%emt 0:00:34]} 58. Qd7 {[%emt 0:00:03]} Re5+ {[%emt 0:00:14]} 59. Kd3 {[%emt 0:00:10]} Re7 {[%emt 0:00:20]} 60. Qc8 {[%emt 0:00:17]} Rb3+ {[%emt 0:00:42]} 61. Kd2 {[%emt 0:00:03]} Rb2+ {[%emt 0:00:17]} 62. Kd3 $1 {[%emt 0:00:08]} Rb6 {[%emt 0:00:50]} (62... Rb4 $142 63. Kc2 Rd4 64. Qg8+ Bg7 65. Kb3 Re3+ 66. Kc2 Re2+ 67. Kb3 Rde4 68. d6 Rb2+ 69. Ka3 Re3+ (69... Re1 70. Qxg7+ Kxg7 71. Kxb2 Rd1 72. Kc2 Rxd6 73. Kc3 g4 74. Kb4 g3 75. Kc5 Rd1 76. Kc4 g2 77. Kb5 g1=Q 78. Kc4 Qd4+ 79. Kb3 Rb1+ 80. Kc2 Rb2+ 81. Kc1 Qd2#) 70. Ka4 Re1 71. Qb3 Re4+ 72. Ka3 Rxb3+ 73. Kxb3 Rd4 74. Kb2 g4 (74... Rxd6+ {is a self mate.} 75. Kb3 g4 76. Kb4 g3 77. Kc5 Rb6 78. Kc4 g2 79. Kd3 g1=Q 80. Ke4 Qg3 81. Kd5 Qe5+ 82. Kc4 Qd4#) 75. Kc3 g3 (75... Rxd6+ 76. Kb4 g3 77. Kb5 g2 78. Kc5 Rd4 79. Kc6 g1=Q 80. Kc7 Rc4+ 81. Kd6 Qd1+ 82. Ke7 Re4#) 76. d7 g2 (76... Rxd7+ 77. Kb4 g2 78. Kb5 g1=Q 79. Kb4 Rd4+ 80. Kc3 Qd1 81. Kb2 Ra4#) 77. d8=Q Rxd8+ 78. Kc4 g1=Q (78... g1=R 79. Kb5 Rc1 80. Kb4 Rb8+ 81. Ka5 Ra1#) 79. Kb3 Rb8+ 80. Kc2 Rb2+ 81. Kd3 Qd4#) 63. Qg8+ {[%emt 0:00:40]} Bg7 {[%emt 0:00:15]} 64. Qd8 {[%emt 0:00:20] Prevents Rc7} Rf7 {[%emt 0:00:38] ( -> ...Rf3+)} 65. d6 {[%emt 0:00:30]} Rb4 {[%emt 0:00:27]} 66. Ke3 {[%emt 0:01:21] Wards off Rf3+} Rd4 {[%emt 0:00:22]} 67. Qb8 {[%emt 0:00:03]} Rd5 {[%emt 0:01:07]} 68. Ke4 {[%emt 0:01:09]} Rd1 {[%emt 0:00:19]} 69. Ke3 {[%emt 0:01:10]} Kh6 {[%emt 0:00:39]} 70. Qb3 {[%emt 0:00:30]} Re1+ $2 {[%emt 0:00:28]} (70... Rxd6 71. Qxf7 Rxa6 72. Qd5 $11) (70... Rff1 {( -> ...Rfe1+)} 71. Qe6+ Bf6) 71. Kd2 {[%emt 0:00:10]} Ref1 {[%emt 0:00:34] ( -> ...R7f2+)} 72. Qh3+ {[%emt 0:00:31]} Kg6 {[%emt 0:00:01]} 73. Qd3+ {[%emt 0:00:34]} R1f5 {[%emt 0:00:43]} 74. d7 {[%emt 0:00:12]} Bf6 {[%emt 0:00:03]} 75. d8=Q {[%emt 0:00:40]} Bxd8 {[%emt 0:00:03]} 76. Qxd8 {[%emt 0:00:02][%mdl 4096] Endgame KQ-KRR} g4 {[%emt 0:00:32]} 77. Qg8+ $2 {[%emt 0:00:25]} (77. Qh4 Rf4 78. Qd8) 77... Kh5 {[%emt 0:00:06]} 78. Qh8+ {[%emt 0:01:02]} Kg5 {[%emt 0:00:04]} 79. Qd8+ {[%emt 0:00:12]} Kf4 {[%emt 0:00:51]} 80. Qd4+ {[%emt 0:00:14]} (80. Qh4 $142 Kf3 81. Qh1+ Kg3 82. Qg1+ Kh4 83. Qh2+ Kg5 84. Qb8) 80... Kf3 {[%emt 0:00:41]} 81. Qe3+ {[%emt 0:00:29]} Kg2 {[%emt 0:00:05]} 82. Qe4+ {[%emt 0:00:03]} Kg3 {[%emt 0:00:21]} 83. Qe3+ {[%emt 0:00:26]} Kh2 {[%emt 0:00:49] ( -> ...Rf2+)} 84. Qh6+ {[%emt 0:00:23]} Kg2 {[%emt 0:00:11] ( -> ...g3)} 85. Qc6+ {[%emt 0:00:21]} Rf3 {[%emt 0:00:34] Black mates.} 86. Qe4 {[%emt 0:00:37]} g3 {[%emt 0:00:41]} 87. Ke2 {[%emt 0:00:36]} Kg1 {[%emt 0:00:27]} 88. Qd4+ {[%emt 0:00:33]} Rf2+ {[%emt 0:00:32]} 89. Ke1 {[%emt 0:00:14]} R7f3 {[%emt 0:01:24]} 90. Qxa7 {[%emt 0:01:49]} Ra3 {[%emt 0:00:11][%cal Ra3a1]} 91. Qg7 {[%emt 0:00:05] [#]} Ra1+ $3 {[%emt 0:00:09][%mdl 512] Weighted Error Value: White=0.70/Black=0.24 (precise)   Loses game:     	White=1     	---        Mistake:       	White=5     	Black=4      Inaccurate:     	White=4     	Black=1      OK:         	White=16    	Black=19     Best:        	White=9     	Black=9} 0-1

[Event "Reykjavik Open 2025"]
[Site "Reykjavik"]
[Date "2025.04.10"]
[Round "3.3"]
[White "Lu, Shanglei"]
[Black "Yankelevich, Lev"]
[Result "1/2-1/2"]
[Annotator "TA"]
[ECO "C43"]
[WhiteElo "2618"]
[BlackElo "2413"]
[PlyCount "56"]
[EventDate "2025.04.09"]
[EventType "swiss"]
[EventCountry "ISL"]
[SourceTitle "playchess.com"]
[Source "ChessBase"]
[SourceQuality "1"]
[TimeControl "40/5400+30:1800+30"]

{[%evp 17,56,0,15,15,0,9,18,9,22,17,22,16,17,15,18,0,0,0,0,0,22,22,22,24,22,11,29,25,21,14,20,20,18,18,35,27,20,11,11,11,18]} 1. e4 {[%emt 0:00:03]} e5 {[%emt 0:05:36]} 2. Nf3 {[%emt 0:00:07]} Nf6 {[%emt 0:02:13]} 3. d4 {[%emt 0:00:50]} Nxe4 {[%emt 0:00:11]} 4. Bd3 {[%emt 0:00:07]} d5 {[%emt 0:00:11]} 5. Nxe5 {[%emt 0:00:07]} Nd7 {[%emt 0:00:09]} 6. Nxd7 {[%emt 0:01:14]} Bxd7 {[%emt 0:00:23]} 7. O-O {[%emt 0:00:11]} Bd6 {[%emt 0:00:34]} 8. Nc3 {[%emt 0:00:18]} Nxc3 {[%emt 0:03:30]} 9. bxc3 {[%emt 0:00:08]} O-O {[%emt 0:00:22]} 10. Qh5 {[%emt 0:01:01][%csl Gd3,LRd5,LRh7][%cal Rh5h7] [#] Dodges Qh4. C43: Petroff Defence: 3 d4.} f5 {[%emt 0:00:50] A sharp opening} 11. Bg5 {[%emt 0:00:16]} Qe8 {[%emt 0:03:43]} 12. Qf3 {[%emt 0:00:31]} c6 {[%emt 0:03:02]} 13. Rfe1 {[%emt 0:02:08] Repels f4} Qb8 {[%emt 0:33:54]} 14. h3 $146 {[%emt 0:09:21]} (14. h4 h6 15. Be7 Bxe7 16. Rxe7 Qd6 17. Rae1 Rae8 18. Rxe8 Bxe8 19. Re5 Bd7 20. h5 {½-½ Szpar,M (2447)-Nguyen,N (2645) Titled Tuesday intern op 25th Apr Early blitz 2023 (9)}) 14... b5 {[%emt 0:07:36]} 15. a4 {[%emt 0:11:31] [#] And now axb5 would win.} a6 {[%emt 0:00:15]} 16. Be7 {[%emt 0:05:41]} Re8 {[%emt 0:11:11]} 17. Bxd6 {[%emt 0:00:17]} Qxd6 {[%emt 0:00:04]} 18. axb5 {[%emt 0:00:06]} (18. Bxf5 Rxe1+ 19. Rxe1 Rf8 $17 (19... bxa4 20. Bxd7 Qxd7 21. Qe2 $14)) 18... Rxe1+ {[%emt 0:01:51]} 19. Rxe1 {[%emt 0:00:09]} axb5 {[%emt 0:00:02]} 20. Re5 {[%emt 0:00:29]} (20. Bxf5 Rf8 21. Re5 Qh6 (21... g6 22. Qg3 $16)) 20... Rf8 {[%emt 0:02:21][%cal Ba8f8,Bf8f7,Bf7e7][%mdl 32]} 21. h4 {[%emt 0:12:37]} Qa3 {[%emt 0:01:17]} 22. Qf4 {[%emt 0:11:44]} (22. Bxf5 g6 23. Bxd7 Qc1+ 24. Kh2 Rxf3 (24... Qxc2 $2 25. Re8 $18) 25. gxf3 Qxc2 $17) 22... Rf7 {[%emt 0:00:49]} 23. Qg5 {[%emt 0:23:49]} (23. Bxf5 $2 g6 (23... Qxc3 $2 {is the wrong capture.} 24. Bxh7+ Kf8 25. Qc1 $18) 24. g4 gxf5 $19) 23... h6 {[%emt 0:04:16]} 24. Qd8+ {[%emt 0:00:42]} Qf8 $1 {[%emt 0:04:13]} ({Don't play} 24... Kh7 $6 25. Re1 $16) 25. Qc7 {[%emt 0:01:20]} h5 {[%emt 0:04:15]} 26. Kh2 {[%emt 0:04:12]} g6 {[%emt 0:01:46]} 27. Re3 {[%emt 0:04:04]} Re7 {[%emt 0:01:10]} 28. Qd6 {[%emt 0:00:55][%csl LRe7,LRg6]} Kf7 {[%emt 0:02:08] A rather calm draw.   Weighted Error Value: White=0.03 (flawless) /Black=0.06 (flawless)   OK:         	White=10    	Black=8      Strong:       	---       	Black=1} 1/2-1/2

[Event "Reykjavik Open 2025"]
[Site "Reykjavik"]
[Date "2025.04.10"]
[Round "3.4"]
[White "Ivanchuk, Vasyl"]
[Black "Kirk, Ezra"]
[Result "1-0"]
[Annotator "TA"]
[ECO "E95"]
[WhiteElo "2604"]
[BlackElo "2394"]
[PlyCount "57"]
[EventDate "2025.04.09"]
[EventType "swiss"]
[EventCountry "ISL"]
[SourceTitle "playchess.com"]
[Source "ChessBase"]
[SourceQuality "1"]
[TimeControl "40/5400+30:1800+30"]

{[%evp 14,57,37,1,44,36,43,50,39,34,70,68,114,101,101,92,95,82,83,69,84,71,65,63,70,85,268,294,368,224,597,420,406,393,420,420,425,411,568,546,765,748,760,773,782,637]} 1. d4 {[%emt 0:00:07]} Nf6 {[%emt 0:00:15]} 2. c4 {[%emt 0:00:09]} g6 {[%emt 0:00:09]} 3. Nc3 {[%emt 0:01:35]} Bg7 {[%emt 0:00:10]} 4. e4 {[%emt 0:00:30]} d6 {[%emt 0:00:22]} 5. Be2 {[%emt 0:01:50]} O-O {[%emt 0:01:42]} 6. Nf3 {[%emt 0:00:04]} Nbd7 {[%emt 0:00:58]} 7. O-O {[%emt 0:01:46]} e5 {[%emt 0:00:07]} 8. Re1 {[%emt 0:05:31]} Qe7 {[%emt 0:04:49] E95: King's Indian: Classical: 7...Nbd7 8 Re1.} 9. Bf1 {[%emt 0:02:48]} h6 {[%emt 0:05:06]} 10. Rb1 {[%emt 0:07:29]} c6 {[%emt 0:08:07] White is slightly better.} 11. a3 $5 {[%emt 0:34:48][%mdl 4] A promising side line.} Re8 {[%emt 0:05:41]} 12. d5 {[%emt 0:03:26]} c5 {[%emt 0:00:47]} (12... a6 $14 {should be considered.}) 13. b4 {[%emt 0:00:12]} b6 $146 {[%emt 0:06:11] White has space advantage and is better} (13... Rf8 14. Na4 b6 15. bxc5 bxc5 16. Nc3 Ne8 17. Qa4 a6 18. Re2 f5 19. Ne1 fxe4 20. Nxe4 {0-1 Ochsner,B (2398)-Mikkelsen,N (2473) DEN-ch Svendborg 2016 (9)}) 14. Qa4 {[%emt 0:07:01]} Nf8 {[%emt 0:22:13]} 15. bxc5 {[%emt 0:00:39]} bxc5 {[%emt 0:01:46]} 16. Qa5 {[%emt 0:09:26]} Rd8 {[%emt 0:07:07]} 17. Be2 {[%emt 0:03:12]} Nh5 {[%emt 0:04:31]} 18. g3 {[%emt 0:01:23] White has more active pieces. The black rooks are passive.} f5 {[%emt 0:01:54]} 19. exf5 {[%emt 0:01:13]} gxf5 $2 {[%emt 0:11:03] [#] Loses the game.} (19... Bxf5 $16 {might work better.} 20. Rb3 Nf6) 20. Nxe5 $1 $18 {[%emt 0:05:55][%mdl 512]} Qxe5 {[%emt 0:03:26]} (20... Bxe5 21. Bxh5) 21. Bb2 {[%emt 0:08:26]} Re8 {[%emt 0:07:05]} (21... f4 {is a better chance.}) 22. Bxh5 {[%emt 0:00:54]} Qxe1+ {[%emt 0:00:05]} 23. Rxe1 {[%emt 0:00:02]} Rxe1+ {[%emt 0:00:07]} 24. Kg2 {[%emt 0:00:01]} Re7 {[%emt 0:04:14]} 25. Bc1 {[%emt 0:00:02][%cal Bb2c1,Bc1f4,Bf4d6][%mdl 32]} Rd7 {[%emt 0:03:46]} 26. Bf4 {[%emt 0:02:05] White is clearly winning.} Ba6 {[%emt 0:01:05]} 27. Qxa6 {[%emt 0:00:42]} Bxc3 {[%emt 0:00:08]} 28. Bxd6 {[%emt 0:00:22] A strong pair of Bishops.} Bd4 {[%emt 0:00:32]} 29. Bf4 {[%emt 0:01:03] Weighted Error Value: White=0.27 (precise) /Black=0.70  Loses game:     	---       	Black=1      Mistake:       	---       	Black=2      Inaccurate:     	White=1     	Black=3      OK:         	White=7     	Black=5      Best:        	White=1     	---} 1-0

[Event "Reykjavik Open 2025"]
[Site "Reykjavik"]
[Date "2025.04.10"]
[Round "3.5"]
[White "Lu, Miaoyi"]
[Black "Banusz, Tamas"]
[Result "1/2-1/2"]
[Annotator "TA"]
[ECO "B33"]
[WhiteElo "2429"]
[BlackElo "2592"]
[PlyCount "101"]
[EventDate "2025.04.09"]
[EventType "swiss"]
[EventCountry "ISL"]
[SourceTitle "playchess.com"]
[Source "ChessBase"]
[SourceQuality "1"]
[TimeControl "40/5400+30:1800+30"]

{[%evp 15,101,12,18,-7,7,0,0,0,0,-13,-6,-6,25,19,33,20,40,31,27,40,31,21,20,18,70,53,84,80,67,57,75,72,61,64,58,66,35,45,92,64,84,64,75,65,68,56,60,54,56,38,46,0,18,10,13,9,4,0,0,0,4,1,0,0,33,33,133,58,81,12,12,12,27,27,89,0,0,0,0,0,0,0,0,0,0,0,0,0]} 1. e4 {[%emt 0:00:02]} c5 {[%emt 0:00:06]} 2. Nf3 {[%emt 0:01:39]} Nc6 {[%emt 0:00:06]} 3. d4 {[%emt 0:01:38]} cxd4 {[%emt 0:00:08]} 4. Nxd4 {[%emt 0:00:04]} Nf6 {[%emt 0:00:05]} 5. Nc3 {[%emt 0:00:05]} e5 {[%emt 0:00:05]} 6. Ndb5 {[%emt 0:00:20]} d6 {[%emt 0:00:06]} 7. Nd5 {[%emt 0:01:34]} Nxd5 {[%emt 0:00:06]} 8. exd5 {[%emt 0:00:04]} Nb8 {[%emt 0:00:06]} 9. Qd3 {[%emt 0:01:19][%cal Oc1g5] B33: Sicilian: Pelikan and Sveshnikov Variations.} a6 {[%emt 0:02:51]} 10. Qa3 {[%emt 0:00:06]} Be7 {[%emt 0:01:00]} 11. Bg5 {[%emt 0:00:07]} f6 {[%emt 0:00:28]} 12. Bd2 {[%emt 0:00:06]} O-O {[%emt 0:04:17]} 13. Bb4 {[%emt 0:04:47][%cal Rb4d6]} axb5 {[%emt 0:04:05]} 14. Qxa8 {[%emt 0:00:06]} Na6 {[%emt 0:00:05]} 15. Bd2 {[%emt 0:00:06]} Qc7 {[%emt 0:12:37]} 16. c3 {[%emt 0:00:50]} (16. Bxb5 $2 Bd7 (16... Qxc2 17. Bxa6 bxa6 18. Qc6 $15) 17. Qa7 Bxb5 $19) 16... Qc5 $146 {[%emt 0:02:31] Repels Qa7} (16... Be6 17. Qa7 Bxd5 18. Bxb5 Nc5 19. O-O f5 20. Be3 Nd7 21. Rfd1 Be6 22. f4 g5 23. fxe5 Nxe5 {1-0 Erigaisi,A (2712)-Vachier Lagrave,M (2727) Tata Steel India blitz 2023 (7)}) 17. Be3 {[%emt 0:00:34]} Qxd5 {[%emt 0:01:07] [#]} 18. Qa7 {[%emt 0:00:05]} f5 {[%emt 0:13:23] and ...f4 would now be decisive} 19. f3 {[%emt 0:00:38]} Bh4+ {[%emt 0:19:17]} ({Better is} 19... Bd7 $11) 20. Bf2 $14 {[%emt 0:04:34]} Bg5 {[%emt 0:02:17]} 21. Rd1 {[%emt 0:03:10] Repels Qd2+} Qxa2 {[%emt 0:01:42]} 22. Bxb5 {[%emt 0:02:21]} (22. Rxd6 Qxb2 23. Be2 h5 $15 (23... Qxc3+ 24. Kf1 $17)) (22. Qb6 {simplifies} b4 23. Bxa6 Qxa6 24. Qxa6 bxa6 25. Rxd6 Re8 26. O-O) 22... Qxb2 {[%emt 0:00:18]} 23. Bc4+ {[%emt 0:02:40]} Kh8 {[%emt 0:00:04]} 24. O-O {[%emt 0:00:22]} (24. Rxd6 $2 Qxc3+ 25. Ke2 Qxc4+ $19) 24... Qxc3 {[%emt 0:04:22]} 25. Bxa6 {[%emt 0:11:37]} bxa6 {[%emt 0:00:01]} 26. Rxd6 {[%emt 0:01:20]} Rg8 {[%emt 0:01:11]} (26... h6 $14) 27. Rfd1 {[%emt 0:11:34][%mdl 1024] White has strong rooks and is better White has strong compensation.} Qc4 {[%emt 0:06:00]} 28. Be3 {[%emt 0:08:45]} f4 {[%emt 0:03:07]} 29. Bb6 {[%emt 0:07:24]} h6 {[%emt 0:07:18]} 30. Qc7 {[%emt 0:11:18] White has more active pieces.} Qb3 {[%emt 0:02:41]} 31. R6d3 {[%emt 0:02:53]} Qe6 {[%emt 0:00:19]} 32. Re1 {[%emt 0:02:08]} Qg6 {[%emt 0:02:30]} 33. Rdd1 {[%emt 0:07:18]} (33. Rd6 $14 Bf6 34. Kh1) 33... Bf6 {[%emt 0:00:55]} (33... Bh3 $5 34. Qd6 (34. gxh3 $2 Bd8+ 35. Kh1 Bxc7 $19) 34... Bf6 $16) 34. Kh1 {[%emt 0:06:52]} Bf5 {[%emt 0:00:45]} 35. Qb7 {[%emt 0:00:11][%cal Od1d6]} Re8 {[%emt 0:02:47]} 36. Bc7 {[%emt 0:02:29]} (36. Qxa6 Bh4 37. Re2 e4 $15) 36... Kh7 {[%emt 0:02:04]} 37. Qxa6 {[%emt 0:03:29]} e4 {[%emt 0:00:01]} 38. Bxf4 {[%emt 0:00:56]} exf3 {[%emt 0:00:16]} 39. gxf3 {[%emt 0:00:05]} Bd3 {[%emt 0:04:28] This pair of bishops is nice.} 40. Qa2 $1 {[%emt 0:03:48]} (40. Qxd3 $2 Rxe1+ 41. Rxe1 Qxd3 $19) 40... Rxe1+ {[%emt 0:02:27]} 41. Rxe1 {[%emt 0:30:02]} Qf5 $1 {[%emt 0:30:54] [#]} 42. Qd2 {[%emt 0:00:00]} (42. Qb3 $1 $16) 42... g5 $11 {[%emt 0:00:00]} 43. Re3 {[%emt 0:00:00] and Bxg5 would now be decisive} Bb5 {[%emt 0:00:00]} 44. Bg3 {[%emt 0:00:00]} g4 {[%emt 0:00:00]} (44... Bc6 $11 {remains equal.}) 45. Qd1 {[%emt 0:00:00]} (45. f4 $16) 45... gxf3 {[%emt 0:00:00] The position is equal.} 46. Kg1 {[%emt 0:00:00]} (46. Qxf3 $2 {loses.} Bc6 47. Kg2 Bxf3+ $19) 46... Be2 {[%emt 0:00:00]} 47. Rxe2 {[%emt 0:00:00]} fxe2 {[%emt 0:00:00]} 48. Qxe2 {[%emt 0:00:00]} Bd4+ {[%emt 0:00:00]} 49. Bf2 {[%emt 0:00:00]} Qxf2+ {[%emt 0:00:00]} 50. Qxf2 {[%emt 0:00:00]} Bxf2+ {[%emt 0:00:00]} 51. Kxf2 {[%emt 0:00:00] Weighted Error Value: White=0.10 (very precise) /Black=0.12 (very precise)   Mistake:       	White=3     	Black=3      Inaccurate:     	White=2     	Black=3      OK:         	White=19    	Black=17     Best:        	White=2     	Black=6      Strong:       	White=1     	Black=1} 1/2-1/2